bitfinex-derivatives/quotes_SOLF0:USTF0_20251002
["timestamp","ask_amount","ask_price","bid_price","bid_amount"]
[1759408275148,8.2749039,226.22,226.1,7.37]
[1759408275346,7.17,226.22,226.1,7.37]
[1759408275749,321.78,226.23,226.15,7.37]
[1759408276248,7.17,226.27,226.15,7.37]
[1759408276952,3.975,226.3,226.21,11.3466]
[1759408277153,7.17,226.29,226.21,7.37]
[1759408277550,5.07946232,226.31,226.21,7.37]
[1759408277851,3.975,226.31,226.21,7.37]
[1759408278149,5.07946232,226.31,226.21,7.37]
[1759408278358,3.975,226.31,226.21,7.37]
[1759408278551,3.975,226.31,226.23,3.9762]
[1759408280460,7.17,226.32,226.24,11.3459]
[1759408281455,11.1447,226.32,226.24,7.37]
[1759408281649,7.17,226.32,226.24,7.37]
[1759408281849,7.17,226.32,226.17,7.37]
[1759408282555,3.9751,226.3,226.2,3.9768]
[1759408282757,3.9751,226.3,226.21,7.42]
[1759408283855,7.17,226.32,226.21,7.42]
[1759408284055,7.17,226.32,226.23,7.71]
[1759408284645,7.17,226.32,226.26,3.9757]
[1759408284850,7.17,226.32,226.23,7.71]
[1759408285550,7.17,226.32,226.23,11.6861]
[1759408285953,321.8,226.36,226.22,7.71]
[1759408286156,7.38,226.35,226.22,7.71]
[1759408286852,8.48418867,226.35,226.22,7.71]
[1759408287649,3.9747,226.32,226.22,11.6863]
[1759408287957,3.9747,226.32,226.22,7.71]
[1759408289556,3.9747,226.32,226.24,3.9761]
[1759408292557,11.3542,226.35,226.24,3.9761]
[1759408292762,11.3542,226.35,226.25,7.71]
[1759408292962,7.38,226.35,226.25,7.71]
[1759408294664,3.9745,226.34,226.25,7.71]
[1759408296259,3.9745,226.34,226.25,11.6858]
[1759408296564,7.38,226.35,226.24,7.71]
[1759408297163,7.38,226.35,226.27,11.6854]
[1759408297862,3.9742,226.36,226.27,7.71]
[1759408298063,61.7894,226.47,226.23,61.8537]
[1759408298064,7.38,226.39,226.29,7.71]
[1759408298264,40.12,226.44,226.31,7.71]
[1759408298563,40.12,226.44,226.31,21.19269249]
[1759408298564,7.38,226.43,226.31,21.19269249]
[1759408298866,7.38,226.43,226.32,7.71]
[1759408299662,3.9731,226.42,226.33,3.9745]
[1759408299964,7.38,226.43,226.34,7.71]
[1759408300754,11.3529,226.43,226.34,11.6843]
[1759408300960,11.3529,226.43,226.34,7.71]
[1759408301564,3.9725,226.45,226.37,7.71]
[1759408302263,1.34773556,226.45,226.37,7.71]
[1759408302664,7.38,226.46,226.37,7.71]
[1759408302865,1.34773556,226.45,226.37,7.71]
[1759408303564,3.9727,226.44,226.37,7.71]
[1759408305267,11.353,226.42,226.37,7.71]
[1759408305454,11.353,226.42,226.36,9.05773556]
[1759408306363,7.38,226.42,226.36,9.05773556]
[1759408308860,11.3531,226.42,226.36,9.05773556]
[1759408309859,7.38,226.42,226.31,13.19139114]
[1759408310069,7.38,226.4,226.33,1.34773556]
[1759408310272,7.38,226.4,226.33,9.05773556]
[1759408310670,7.38,226.4,226.33,13.03213556]
[1759408311675,7.38,226.4,226.33,9.05773556]
[1759408311875,8.72773556,226.4,226.33,7.71]
[1759408312078,3.9745,226.34,226.28,7.71]
[1759408312272,11.3545,226.34,226.28,7.71]
[1759408312472,1.34773556,226.37,226.28,9.05773556]
[1759408312669,3.974,226.36,226.28,13.03303556]
[1759408312872,3.974,226.36,226.3,1.34773556]
[1759408313274,3.974,226.36,226.28,11.6853]
[1759408313275,3.974,226.36,226.28,13.03303556]
[1759408314083,3.974,226.36,226.28,11.6853]
[1759408316186,11.1143,226.35,226.28,7.71]
[1759408316484,8.48773556,226.35,226.28,7.71]
[1759408316687,8.48773556,226.33,226.25,1.34773556]
[1759408316980,8.48773556,226.33,226.24,7.43]
[1759408317175,3.9748,226.32,226.24,11.406]
[1759408318078,3.975,226.31,226.24,11.406]
[1759408319678,3.975,226.31,226.24,7.43]
[1759408321788,8.48773556,226.33,226.24,7.43]
[1759408321789,7.14,226.33,226.24,11.406]
[1759408323091,7.14,226.33,226.25,1.34773556]
[1759408323492,7.14,226.33,226.27,1.34773556]
[1759408323688,3.9743,226.35,226.27,1.34773556]
[1759408324094,1.10402123,226.36,226.29,1.34773556]
[1759408324290,8.24402123,226.37,226.31,8.77773556]
[1759408324495,7.14,226.37,226.31,8.77773556]
[1759408324690,7.14,226.34,226.26,7.43]
[1759408324889,1.34773556,226.31,226.23,4.13447314]
[1759408325090,7.14,226.3,226.23,4.13447314]
[1759408325284,7.14,226.3,226.22,7.43]
[1759408325285,1.34773556,226.29,226.22,7.43]
[1759408326690,3.9753,226.29,226.22,7.43]
[1759408327193,1.34773556,226.29,226.22,7.43]
[1759408327594,5.32303556,226.29,226.22,7.43]
[1759408327794,3.9753,226.29,226.22,7.43]
[1759408328597,7.14,226.26,226.19,1.34773556]
[1759408328789,1.34773556,226.25,226.15,1.34773556]
[1759408328990,7.14,226.22,226.13,1.34773556]
[1759408329799,7.14,226.22,226.15,1.34773556]
[1759408330192,7.14,226.22,226.16,3.9775]
[1759408330598,7.14,226.22,226.13,1.34773556]
[1759408331494,7.14,226.2,226.12,7.43]
[1759408331999,11.1168,226.2,226.12,7.43]
[1759408332201,1.34773556,226.19,226.12,7.43]
[1759408332393,1.34773556,226.19,226.09,1.34773556]
[1759408332598,7.14,226.18,226.09,1.34773556]
[1759408332793,7.14,226.15,226.05,1.34773556]
[1759408332989,7.14,226.12,226.03,8.77773556]
[1759408333194,7.14,226.09,225.98,7.43]
[1759408333394,1.34773556,226.07,225.98,7.43]
[1759408333894,1.34773556,226.07,225.99,3.9805]
[1759408334095,8.48773556,226.09,225.99,5.32823556]
[1759408334405,8.48773556,226.09,225.99,1.34773556]
[1759408335396,8.48773556,226.09,226.0,3.9803]
[1759408335593,7.14,226.09,226.01,8.77773556]
[1759408336197,7.14,226.09,226.02,3.98]
[1759408337501,7.14,226.14,226.02,3.98]
[1759408337701,48.66,226.14,226.04,11.4096]
[1759408337901,7.14,226.14,226.04,11.4096]
[1759408339399,7.14,226.14,226.06,3.9792]
[1759408339596,7.14,226.14,226.07,7.43]
[1759408340110,7.14,226.14,226.03,11.4097]
[1759408340306,7.14,226.14,226.03,7.43]
[1759408341493,3.9781,226.13,226.03,7.43]
[1759408341702,7.14,226.12,225.99,7.43]
[1759408341895,9.25212102,226.12,225.99,7.43]
[1759408342507,3.9791,226.07,225.99,7.43]
[1759408342807,11.5091,226.07,225.99,7.43]
[1759408343595,3.9795,226.05,225.95,11.2611]
[1759408344208,7.53,226.07,225.95,11.2611]
[1759408345107,7.18,226.05,225.95,7.28]
[1759408346206,3.9797,226.04,225.95,7.28]
[1759408347605,7.18,226.03,225.95,7.28]
[1759408348514,7.18,226.02,225.89,7.29]
[1759408348915,3.9807,225.99,225.89,7.29]
[1759408349310,9.29212102,226.0,225.89,7.29]
[1759408350015,3.9811,225.96,225.89,7.29]
[1759408350214,69.1067,225.97,225.84,7.29]
[1759408350519,71.21882102,225.97,225.84,7.29]
[1759408350919,69.1164,225.93,225.78,2.11212102]
[1759408351220,7.18,225.91,225.79,7.29]
[1759408351814,11.1619,225.91,225.79,7.29]
[1759408352012,85.18,225.93,225.82,7.29]
[1759408352013,109.38,225.93,225.82,7.29]
[1759408352213,7.18,226.0,225.85,7.29]
[1759408352419,7.18,226.0,225.9,7.29]
[1759408352711,321.88,226.01,225.9,7.29]
[1759408353119,321.88,226.01,225.9,9.40212102]
[1759408353320,321.88,226.01,225.9,7.29]
[1759408354623,321.88,226.01,225.9,9.40212102]
[1759408355425,116.76,226.04,225.9,9.40212102]
[1759408356024,109.58,226.04,225.9,9.40212102]
[1759408356228,7.18,226.03,225.9,7.29]
[1759408357224,7.18,226.03,225.9,9.40212102]
[1759408357428,7.18,226.03,225.91,7.29]
[1759408359520,5.56051955,226.13,225.91,7.29]
[1759408359724,116.74,226.12,225.91,7.29]
[1759408359927,7.18,226.1,225.91,7.29]
[1759408362227,7.18,226.1,225.92,7.29]
[1759408362617,61.8963,226.08,225.92,11.2716]
[1759408362817,61.903,226.05,225.92,7.29]
[1759408363017,61.9081,226.03,225.86,7.29]
[1759408363228,7.18,225.98,225.86,7.29]
[1759408363929,3.9808,225.97,225.86,7.29]
[1759408364426,7.18,225.96,225.85,3.9828]
[1759408364630,7.18,225.96,225.81,7.29]
[1759408364931,7.18,225.94,225.81,7.29]
[1759408365128,3.9819,225.91,225.81,7.29]
[1759408365431,7.18,225.9,225.81,7.29]
[1759408366135,7.18,225.95,225.81,7.29]
[1759408371634,8.2859137,226.0,225.82,7.29]
[1759408371929,7.18,226.0,225.82,7.29]
[1759408372522,7.18,226.0,225.83,15.5]
[1759408372726,7.18,226.0,225.84,7.29]
[1759408373134,8.28579744,226.0,225.84,7.29]
[1759408373630,7.18,225.98,225.84,7.29]
[1759408373933,8.28579744,225.98,225.84,7.29]
[1759408374127,7.18,225.98,225.84,7.29]
[1759408374332,7.73,225.96,225.77,7.24]
[1759408375729,8.83579744,225.96,225.77,7.24]
[1759408376026,7.73,225.96,225.77,7.24]
[1759408378429,8.83579744,225.96,225.77,7.24]
[1759408378623,7.73,225.96,225.79,7.24]
[1759408379035,7.73,225.96,225.8,7.24]
[1759408380030,7.73,225.96,225.81,7.24]
[1759408383035,7.73,226.05,225.87,7.24]
[1759408383238,7.73,226.05,225.89,7.24]
[1759408384142,7.73,226.03,225.89,7.24]
[1759408384440,8.83541284,226.03,225.89,7.24]
[1759408385340,7.73,226.01,225.89,7.24]
[1759408386536,1.10541284,226.02,225.84,12.1648867]
[1759408386837,5.56051955,226.0,225.84,7.24]
[1759408387042,8.83541284,225.99,225.84,7.24]
[1759408387244,5.56051955,226.0,225.84,7.24]
[1759408387245,7.73,225.97,225.84,7.24]
[1759408387838,7.73,225.97,225.8,4.9248867]
[1759408388040,7.73,225.97,225.81,7.24]
[1759408388336,1.10541284,225.99,225.81,12.1648867]
[1759408388541,7.73,225.97,225.81,12.1648867]
[1759408388736,4.909094,226.1,225.85,7.24]
[1759408388940,8.83583071,226.09,225.89,7.24]
[1759408389140,1.10583071,226.08,225.91,7.24]
[1759408389345,7.73,226.09,225.92,4.9248867]
[1759408389643,7.73,226.09,225.93,7.24]
[1759408389839,7.73,226.09,225.94,7.24]
[1759408390040,1.10583071,226.12,225.95,12.1648867]
[1759408390343,7.73,226.14,225.96,4.9248867]
[1759408390542,7.73,226.14,225.97,7.24]
[1759408390744,8.83583071,226.14,225.97,7.24]
[1759408390944,8.83583071,226.14,225.96,4.9248867]
[1759408390945,7.73,226.14,225.99,7.24]
[1759408393834,7.73,226.19,225.99,12.1648867]
[1759408394039,7.73,226.19,226.04,7.24]
[1759408394246,32.60051955,226.27,226.04,7.24]
[1759408394247,7.73,226.25,226.04,7.24]
[1759408394545,7.73,226.25,226.06,7.24]
[1759408394735,7.73,226.25,226.08,7.24]
[1759408395747,7.73,226.25,226.08,18.88585288]
[1759408396044,7.73,226.3,226.09,7.24]
[1759408396247,322.0,226.33,226.1,65.64]
[1759408396248,3.5163254,226.29,226.1,65.64]
[1759408396749,7.73,226.28,226.11,7.24]
[1759408399346,7.73,226.28,226.15,3.5163254]
[1759408399553,7.73,226.32,226.16,7.24]
[1759408400052,7.73,226.32,226.17,16.8]
[1759408400851,7.73,226.32,226.18,7.24]
[1759408404845,7.73,226.32,226.19,47.0]
[1759408405050,7.73,226.32,226.2,7.59]
[1759408407157,7.47,226.37,226.2,7.59]
[1759408407554,7.47,226.37,226.22,7.59]
[1759408408953,7.47,226.37,226.24,7.59]
[1759408413656,7.47,226.37,226.19,3.5163254]
[1759408413960,7.47,226.37,226.2,7.59]
[1759408414962,7.47,226.37,226.21,2.15]
[1759408415853,3.5163254,226.35,226.21,2.15]
[1759408416057,7.47,226.34,226.21,2.15]
[1759408418266,7.47,226.34,226.22,4.85]
[1759408419861,7.47,226.34,226.23,7.59]
[1759408420361,7.47,226.34,226.24,2.67]
[1759408425656,7.47,226.34,226.24,10.26]
[1759408430660,7.47,226.34,226.25,7.59]
[1759408435161,1.10396105,226.33,226.25,7.59]
[1759408435365,7.47,226.34,226.25,7.59]
[1759408435756,7.47,226.34,226.26,2.14]
[1759408436169,1.10394478,226.33,226.26,2.14]
[1759408436371,7.47,226.34,226.26,2.14]
[1759408436565,1.10394478,226.33,226.26,2.14]
[1759408436764,7.78,226.32,226.26,2.14]
[1759408437869,7.78,226.39,226.27,7.89]
[1759408438069,7.78,226.37,226.27,7.89]
[1759408438369,1.10393351,226.36,226.27,7.89]
[1759408438663,1.10393351,226.35,226.27,7.89]
[1759408438867,1.10393351,226.34,226.27,7.89]
[1759408439065,1.10393351,226.33,226.27,7.89]
[1759408439262,1.10393351,226.32,226.27,7.89]
[1759408439569,7.78,226.37,226.27,7.89]
[1759408439768,1.10389443,226.36,226.27,7.89]
[1759408440068,1.10389443,226.35,226.27,7.89]
[1759408440372,1.10389443,226.34,226.27,7.89]
[1759408440662,1.10389443,226.33,226.27,7.89]
[1759408440870,7.78,226.37,226.27,7.89]
[1759408441066,1.10377128,226.36,226.27,7.89]
[1759408441265,1.10377128,226.35,226.27,7.89]
[1759408441561,8.88377128,226.34,226.27,7.89]
[1759408441764,1.10377128,226.33,226.26,2.14]
[1759408441966,1.10377128,226.32,226.26,2.14]
[1759408442168,7.78,226.3,226.26,2.14]
[1759408442769,7.78,226.3,226.26,10.03]
[1759408443068,4.909094,226.42,226.26,2.14]
[1759408443069,7.78,226.35,226.26,2.14]
[1759408443269,1.10390426,226.34,226.26,2.14]
[1759408443470,1.10390426,226.33,226.26,2.14]
[1759408443670,1.10390426,226.32,226.26,2.14]
[1759408443858,7.78,226.35,226.26,2.14]
[1759408444059,1.10389836,226.34,226.26,2.14]
[1759408444362,1.10389836,226.33,226.26,2.14]
[1759408444563,1.10389836,226.32,226.26,2.14]
[1759408444769,1.10389836,226.31,226.27,7.89]
[1759408444968,1.34896206,226.34,226.27,7.89]
[1759408445164,1.10389773,226.33,226.27,7.89]
[1759408445362,1.10389773,226.32,226.26,10.03]
[1759408445557,1.10389773,226.31,226.26,2.14]
[1759408445764,7.78,226.35,226.27,10.56]
[1759408445971,1.10388592,226.34,226.27,10.56]
[1759408446273,1.10388592,226.33,226.27,10.56]
[1759408446568,9.12896206,226.35,226.27,10.56]
[1759408446769,1.1038774,226.34,226.27,10.56]
[1759408446970,1.1038774,226.33,226.27,10.56]
[1759408447172,9.12896206,226.35,226.27,10.56]
[1759408448367,1.34896206,226.38,226.27,2.67]
[1759408448571,1.10383635,226.37,226.28,7.89]
[1759408448871,1.34896206,226.38,226.3,7.89]
[1759408449373,7.78,226.39,226.32,1.34896206]
[1759408449561,321.86,226.46,226.33,7.89]
[1759408449562,9.12896206,226.42,226.33,7.89]
[1759408449872,1.10359793,226.41,226.33,7.89]
[1759408450069,1.10359793,226.4,226.33,7.89]
[1759408450369,9.12896206,226.42,226.33,7.89]
[1759408450568,1.10362194,226.41,226.33,7.89]
[1759408450769,7.78,226.42,226.34,1.34896206]
[1759408450964,1.10361014,226.41,226.34,1.34896206]
[1759408451168,1.10359573,226.41,226.34,1.34896206]
[1759408451364,9.12896206,226.42,226.33,7.89]
[1759408451568,1.10361199,226.41,226.33,7.89]
[1759408451965,9.12896206,226.42,226.33,7.89]
[1759408452962,7.78,226.39,226.3,4.891759]
[1759408453174,7.78,226.39,226.3,1.34896206]
[1759408453369,1.34896206,226.37,226.29,7.89]
[1759408453763,1.34896206,226.37,226.3,2.14]
[1759408454169,7.78,226.39,226.3,2.14]
[1759408454368,9.12896206,226.39,226.3,2.14]
[1759408455467,7.78,226.39,226.3,2.14]
[1759408455666,9.12896206,226.39,226.3,2.14]
[1759408457672,1.34896206,226.36,226.3,2.14]
[1759408457878,9.12896206,226.36,226.3,2.14]
[1759408458279,7.78,226.36,226.3,2.14]
[1759408458674,7.78,226.32,226.3,2.14]
[1759408458875,7.78,226.32,226.29,4.86]
[1759408459078,9.88729151,226.3,226.27,2.67]
[1759408459573,3.04076408,226.29,226.27,2.67]
[1759408459783,7.78,226.28,226.27,2.67]
[1759408459978,8.88420848,226.28,226.27,2.67]
[1759408466482,9.32420848,226.28,226.14,7.84]
[1759408466686,7.25,226.26,226.14,7.84]
[1759408466888,7.25,226.3,226.14,7.84]
[1759408467081,17.62416075,226.29,226.14,7.84]
[1759408467284,1.10416075,226.28,226.14,7.84]
[1759408467482,16.52,226.29,226.14,7.84]
[1759408467783,1.10416048,226.28,226.14,7.84]
[1759408467983,16.52,226.29,226.14,7.84]
[1759408468183,8.35416075,226.28,226.14,7.84]
[1759408468386,1.10416075,226.27,226.14,7.84]
[1759408468586,8.35416075,226.26,226.14,7.84]
[1759408468785,7.25,226.26,226.14,7.84]
[1759408469688,7.25,226.3,226.17,7.84]
[1759408469887,1.10414198,226.29,226.17,7.84]
[1759408470087,1.10414198,226.28,226.17,7.84]
[1759408470285,7.25,226.3,226.17,7.84]
[1759408470484,1.10420646,226.29,226.17,7.84]
[1759408470789,7.25,226.3,226.17,7.84]
[1759408470990,1.10413982,226.29,226.17,7.84]
[1759408471179,7.25,226.3,226.17,7.84]
[1759408471383,1.10414045,226.29,226.17,7.84]
[1759408471580,7.25,226.3,226.17,7.84]
[1759408471781,1.10414072,226.29,226.17,7.84]
[1759408471989,7.25,226.3,226.17,7.84]
[1759408472287,1.10414072,226.29,226.17,7.84]
[1759408472486,7.25,226.3,226.17,7.84]
[1759408472684,1.10414072,226.29,226.17,7.84]
[1759408472887,1.10417327,226.28,226.17,7.84]
[1759408473083,7.25,226.3,226.17,7.84]
[1759408473291,1.10420583,226.29,226.17,7.84]
[1759408473493,7.25,226.3,226.17,7.84]
[1759408473692,1.10414072,226.29,226.17,7.84]
[1759408473885,7.25,226.3,226.17,7.84]
[1759408474081,1.10414072,226.29,226.17,7.84]
[1759408474286,7.25,226.3,226.17,7.84]
[1759408474485,1.10414072,226.29,226.17,7.84]
[1759408474682,7.25,226.3,226.17,7.84]
[1759408474886,1.10417327,226.29,226.17,7.84]
[1759408475088,7.25,226.3,226.17,7.84]
[1759408475794,7.25,226.28,226.17,7.84]
[1759408478186,7.25,226.26,226.09,7.31700299]
[1759408478391,7.25,226.24,226.1,9.94729151]
[1759408478587,7.25,226.24,226.11,7.84]
[1759408480989,7.25,226.17,226.03,7.31700299]
[1759408481190,7.25,226.13,225.99,7.84]
[1759408481393,7.25,226.09,225.95,21.3096739]
[1759408481696,9.35729151,226.12,225.96,7.84]
[1759408482088,7.25,226.12,225.98,7.84]
[1759408482488,7.25,226.12,226.01,2.10729151]
[1759408482688,7.25,226.17,226.05,2.10729151]
[1759408482888,7.25,226.17,226.06,7.84]
[1759408487693,7.25,226.23,226.09,2.10729151]
[1759408487903,7.25,226.23,226.1,7.84]
[1759408490204,7.25,226.23,226.1,9.94729151]
[1759408490405,7.25,226.23,226.11,7.84]
[1759408492011,9.35729151,226.23,226.11,7.84]
[1759408492404,10.4618235,226.23,226.11,7.84]
[1759408492605,9.35729151,226.23,226.11,7.84]
[1759408493006,10.4618235,226.23,226.11,7.84]
[1759408493208,9.35729151,226.23,226.11,7.84]
[1759408493711,42.4618235,226.23,226.11,7.84]
[1759408493904,7.25,226.21,226.11,7.84]
[1759408496013,8.35453199,226.21,226.11,7.84]
[1759408496216,7.25,226.21,226.11,7.84]
[1759408499614,1.10459292,226.2,226.04,2.10729151]
[1759408499811,7.53,226.19,226.05,7.55]
[1759408500019,7.53,226.19,226.07,2.10729151]
[1759408500217,7.53,226.19,226.08,7.55]
[1759408500421,1.10460032,226.21,226.11,7.55]
[1759408500720,1.10458749,226.22,226.11,7.55]
[1759408500912,8.63458749,226.21,226.11,7.55]
[1759408501111,7.53,226.21,226.11,7.55]
[1759408501311,1.10465371,226.2,226.11,7.55]
[1759408501521,7.53,226.21,226.11,7.55]
[1759408501719,1.10465307,226.2,226.11,7.55]
[1759408502020,7.53,226.24,226.14,7.55]
[1759408502416,1.10445175,226.23,226.14,7.55]
[1759408502714,7.53,226.24,226.14,7.55]
[1759408503021,1.10446778,226.23,226.14,7.55]
[1759408503221,7.53,226.24,226.14,7.55]
[1759408503425,1.10450035,226.23,226.14,7.55]
[1759408503620,7.53,226.24,226.14,7.55]
[1759408503819,1.10444299,226.23,226.14,7.55]
[1759408504025,7.53,226.24,226.14,7.55]
[1759408504225,1.10444247,226.23,226.14,7.55]
[1759408504523,7.53,226.24,226.14,7.55]
[1759408505529,10.60155935,226.28,226.14,7.55]
[1759408505724,1.10438929,226.27,226.14,7.55]
[1759408505923,1.10438929,226.26,226.14,7.55]
[1759408506130,1.10438929,226.25,226.14,7.55]
[1759408506434,7.53,226.28,226.17,7.55]
[1759408506727,1.10431773,226.27,226.2,7.55]
[1759408506930,3.07158601,226.31,226.2,7.55]
[1759408507125,1.10424768,226.3,226.2,7.55]
[1759408507329,1.10424768,226.29,226.2,7.55]
[1759408507530,1.10424768,226.28,226.2,7.55]
[1759408507730,1.10424768,226.27,226.2,7.55]
[1759408507931,1.1042469,226.3,226.2,7.55]
[1759408508131,1.1042469,226.29,226.2,7.55]
[1759408508329,1.1042469,226.28,226.2,7.55]
[1759408508631,10.60158601,226.32,226.2,7.55]
[1759408508832,7.53,226.3,226.2,7.55]
[1759408509032,1.10420895,226.29,226.2,7.55]
[1759408509232,1.10420895,226.28,226.2,7.55]
[1759408509438,7.53,226.3,226.2,7.55]
[1759408509733,7.53,226.28,226.2,7.55]
[1759408510722,7.53,226.28,226.16,9.65729151]
[1759408510928,1.10428055,226.27,226.16,9.65729151]
[1759408511133,7.53,226.28,226.16,9.65729151]
[1759408511333,1.10429747,226.27,226.16,2.10729151]
[1759408511632,7.53,226.28,226.17,7.55]
[1759408514732,1.10418503,226.3,226.17,7.55]
[1759408514934,7.53,226.32,226.2,7.55]
[1759408515133,1.10414048,226.31,226.2,7.55]
[1759408515335,7.53,226.32,226.2,7.55]
[1759408515534,1.10413985,226.31,226.2,7.55]
[1759408515835,7.53,226.32,226.2,7.55]
[1759408516140,1.10413985,226.31,226.2,7.55]
[1759408516332,7.53,226.38,226.24,7.55]
[1759408516534,1.10382112,226.37,226.28,7.55]
[1759408516733,7.53,226.38,226.28,7.55]
[1759408517629,7.53,226.36,226.23,7.55]
[1759408518337,8.63387501,226.36,226.23,7.55]
[1759408518540,1.10391607,226.35,226.23,7.55]
[1759408518933,7.53,226.36,226.23,7.55]
[1759408519136,8.63388326,226.36,226.23,7.55]
[1759408519540,7.53,226.36,226.23,7.55]
[1759408520134,1.10386007,226.4,226.26,7.55]
[1759408520335,1.10386007,226.39,226.3,7.55]
[1759408520742,8.63386007,226.39,226.3,7.55]
[1759408521239,7.53,226.39,226.3,7.55]
[1759408521739,8.87821663,226.43,226.33,7.55]
[1759408522341,7.53,226.43,226.33,7.55]
[1759408525136,7.53,226.43,226.33,8.89821663]
[1759408525340,8.45821663,226.48,226.38,7.76]
[1759408526139,1.103591,226.51,226.41,7.76]
[1759408526343,8.45821663,226.46,226.36,7.76]
[1759408526547,1.34821663,226.43,226.36,7.76]
[1759408530237,1.34821663,226.41,226.25,7.76]
[1759408530442,1.34821663,226.41,226.3,9.10821663]
[1759408530940,7.11,226.47,226.33,1.34821663]
[1759408531142,1.34821663,226.44,226.35,1.34821663]
[1759408531535,1.34821663,226.44,226.36,7.76]
[1759408536046,8.45821663,226.41,226.36,7.76]
[1759408536245,1.34821663,226.43,226.34,7.76]
[1759408537056,1.34821663,226.43,226.36,7.76]
[1759408539153,7.11,226.45,226.36,7.76]
[1759408540053,7.11,226.45,226.38,9.10821663]
[1759408542549,1.10336203,226.48,226.38,9.10821663]
[1759408542754,1.10336203,226.47,226.41,9.10821663]
[1759408543053,7.11,226.5,226.41,9.10821663]
[1759408543254,1.10329515,226.49,226.41,9.10821663]
[1759408543456,7.11,226.5,226.41,9.10821663]
[1759408544152,7.11,226.5,226.41,7.76]
[1759408544351,7.11,226.5,226.42,1.34821663]
[1759408546759,7.11,226.5,226.41,7.76]
[1759408547262,7.11,226.48,226.29,7.76]
[1759408547461,7.11,226.45,226.33,7.76]
[1759408547661,1.10343083,226.44,226.34,1.34821663]
[1759408547862,7.11,226.45,226.34,1.34821663]
[1759408548063,7.11,226.43,226.34,1.34821663]
[1759408548661,7.11,226.49,226.4,1.34821663]
[1759408548858,1.10338161,226.48,226.41,7.76]
[1759408549062,7.11,226.49,226.43,1.34821663]
[1759408549262,1.1031922,226.48,226.43,9.10821663]
[1759408549461,7.11,226.55,226.44,7.76]
[1759408549661,1.10313552,226.54,226.44,7.76]
[1759408549858,1.10313552,226.53,226.44,7.76]
[1759408550062,1.10313552,226.52,226.44,7.76]
[1759408550261,1.10313552,226.51,226.44,7.76]
[1759408550467,1.10313552,226.5,226.44,7.76]
[1759408550765,7.11,226.55,226.44,7.76]
[1759408550963,7.11,226.53,226.44,7.76]
[1759408551168,1.10305814,226.52,226.44,7.76]
[1759408551359,1.10305814,226.51,226.44,7.76]
[1759408551560,1.10305814,226.5,226.44,7.76]
[1759408551761,7.11,226.53,226.44,7.76]
[1759408551962,1.1030634,226.52,226.44,7.76]
[1759408552160,1.1030634,226.51,226.44,7.76]
[1759408552361,1.1030634,226.5,226.44,7.76]